fUST/lending_fUST_20240227
["ID","MTS","AMOUNT","RATE_DAILY","PERIOD"]
[315334789,1708983049365,-625.63,0.00020273,2]
[315334791,1708983049374,-219.3802752,0.00020896,2]
[315334793,1708983049383,-500.0,0.00020896,2]
[315334795,1708983049392,-461.63356539,0.00020896,2]
[315334802,1708983049458,-38.36643461,0.00020896,2]
[315334804,1708983049467,-500.0,0.00020896,2]
[315334806,1708983049476,-500.0,0.00020896,2]
[315334808,1708983049485,-500.0,0.00020896,2]
[315334810,1708983049494,-500.0,0.00020896,2]
[315334812,1708983049504,-500.0,0.00020896,2]
[315334814,1708983049513,-500.0,0.00020896,2]
[315334816,1708983049522,-151.073565,0.00020933,2]
[315334818,1708983049531,-34154.68982301,0.00021,2]
[315334820,1708983049543,-643202.07398404,0.00021,2]
[315334822,1708983049553,-664.16267637,0.00021,2]
[315334824,1708983049566,-1533.16044773,0.00021,2]
[315338715,1708983474453,183.207723,0.00017598,2]
[315338717,1708983615463,205.0,0.000181,2]
[315338719,1708983696708,24900.0,0.00017964,2]
[315338723,1708983901958,155.15360207,0.00017,2]
[315338817,1708983985755,183.207723,0.00018097,2]
[315338851,1708984217188,24900.0,0.00017898,2]
[315338908,1708984232663,-159.80558045,0.00018199,2]
[315338910,1708984232673,-300.77936664,0.000182,2]
[315338912,1708984232682,-155.10236756,0.00018201,2]
[315338914,1708984232692,-2717.31010196,0.00018202,2]
[315338917,1708984232702,-883.13049723,0.00018203,2]
[315338919,1708984232711,-2327.06414986,0.000189,2]
[315338921,1708984232720,-739.84387777,0.00019,2]
[315338923,1708984232730,-527.48517792,0.00019078,2]
[315338925,1708984232739,-546.76,0.00019168,3]
[315338927,1708984232748,-273.38,0.00019168,3]
[315338929,1708984232757,-820.18,0.00019168,3]
[315338931,1708984232766,-1600.10761346,0.00019176,2]
[315338933,1708984232775,-4865.67576696,0.00019176,2]
[315338936,1708984232787,-5427.05506391,0.00019176,2]
[315339505,1708984238482,-883.13049723,0.00018198,2]
[315339507,1708984238492,-16402.87119228,0.00019176,2]
[315339509,1708984238503,-1213.5532049,0.00019177,2]
[315339511,1708984238512,-999.7924886,0.00019177,2]
[315339513,1708984238523,-1212.80038033,0.00019177,2]
[315339515,1708984238533,-484.28906895,0.00019178,2]
[315339517,1708984238541,-552.19583959,0.00019178,2]
[315339519,1708984238551,-500.0,0.00019178,2]
[315339521,1708984238561,-500.0,0.00019178,2]
[315339523,1708984238571,-500.75121153,0.00019178,2]
[315339526,1708984238581,-500.95156655,0.00019178,2]
[315339528,1708984238591,-500.0,0.00019178,2]
[315339530,1708984238599,-500.70616589,0.00019178,2]
[315339532,1708984238610,-500.0,0.00019178,2]
[315339534,1708984238619,-500.0,0.00019178,2]
[315339536,1708984238628,-500.73988973,0.00019178,2]
[315339538,1708984238637,-500.0,0.00019178,2]
[315339540,1708984238646,-501.86045569,0.00019178,2]
[315339542,1708984238655,-500.0,0.00019178,2]
[315339543,1708984238665,-500.0,0.00019178,2]
[315339545,1708984238675,-407.07496892,0.00019178,2]
[315339548,1708984238684,-501.52917803,0.00019178,2]
[315339549,1708984238693,-500.0,0.00019178,2]
[315339552,1708984238704,-470.0,0.00019178,2]
[315339553,1708984238713,-323.5389326,0.00019178,2]
[315339556,1708984238722,-500.0,0.00019178,2]
[315339557,1708984238731,-500.0,0.00019178,2]
[315339559,1708984238740,-500.0,0.00019178,2]
[315339561,1708984238750,-500.0,0.00019178,2]
[315339563,1708984238760,-500.0,0.00019178,2]
[315339566,1708984238770,-276.13419307,0.00019178,2]
[315339568,1708984238779,-503.35756395,0.00019178,2]
[315339570,1708984238789,-500.0,0.00019178,2]
[315339572,1708984238798,-500.0,0.00019178,2]
[315339574,1708984238807,-291.00212191,0.00019178,2]
[315339576,1708984238821,-500.0,0.00019178,2]
[315339578,1708984238830,-500.0,0.00019178,2]
[315339580,1708984238839,-500.0,0.00019178,2]
[315339582,1708984238849,-709.78,0.00019178,2]
[315339584,1708984238858,-500.0,0.00019178,2]
[315339586,1708984238867,-1130.39,0.00019178,2]
[315339588,1708984238877,-500.0,0.00019178,2]
[315339590,1708984238886,-500.0,0.00019178,2]
[315339592,1708984238895,-500.0,0.00019178,2]
[315339594,1708984238905,-500.0,0.00019178,2]
[315339596,1708984238914,-1000.0,0.00019178,2]
[315339598,1708984238923,-500.60959108,0.00019178,2]
[315339600,1708984238932,-513.67629886,0.00019178,2]
[315339602,1708984238941,-500.91970631,0.00019178,2]
[315339604,1708984238950,-500.0,0.00019178,2]
[315339606,1708984238961,-500.0,0.00019178,2]
[315339608,1708984238970,-500.0,0.00019178,2]
[315339610,1708984238982,-500.0,0.00019178,2]
[315339613,1708984238991,-500.0,0.00019178,2]
[315339614,1708984239000,-500.0,0.00019178,2]
[315339617,1708984239010,-500.40993125,0.00019178,2]
[315339619,1708984239019,-1000.0,0.00019178,2]
[315339621,1708984239028,-500.0,0.00019178,2]
[315339623,1708984239037,-500.54112541,0.00019178,2]
[315339625,1708984239046,-500.0,0.00019178,2]
[315339627,1708984239055,-500.0,0.00019178,2]
[315339628,1708984239064,-500.0,0.00019178,2]
[315339630,1708984239074,-500.0,0.00019178,2]
[315339632,1708984239083,-500.0,0.00019178,2]
[315339634,1708984239092,-500.0,0.00019178,2]
[315339637,1708984239101,-522.16106929,0.00019178,2]
[315339638,1708984239110,-500.0,0.00019178,2]
[315339641,1708984239120,-500.0,0.00019178,2]
[315339643,1708984239131,-500.0,0.00019178,2]
[315339644,1708984239140,-500.0,0.00019178,2]
[315339647,1708984239150,-500.0,0.00019178,2]
[315339649,1708984239159,-500.0,0.00019178,2]
[315339651,1708984239169,-500.0,0.00019178,2]
[315339653,1708984239178,-500.0,0.00019178,2]
[315339655,1708984239188,-500.36421082,0.00019178,2]
[315339657,1708984239198,-500.0,0.00019178,2]
[315339659,1708984239208,-500.0,0.00019178,2]
[315339661,1708984239217,-666.66,0.00019178,2]
[315339663,1708984239225,-666.66,0.00019178,2]
[315339665,1708984239237,-666.66,0.00019178,2]
[315339667,1708984239246,-500.0,0.00019178,2]
[315339669,1708984239256,-666.66,0.00019178,2]
[315339671,1708984239266,-500.0,0.00019178,2]
[315339673,1708984239276,-500.0,0.00019178,2]
[315339675,1708984239286,-500.0,0.00019178,2]
[315339677,1708984239295,-500.0,0.00019178,2]
[315339679,1708984239305,-500.0,0.00019178,2]
[315339681,1708984239314,-500.0,0.00019178,2]
[315339683,1708984239323,-515.24992095,0.00019178,2]
[315339685,1708984239333,-500.0,0.00019178,2]
[315339687,1708984239342,-500.0,0.00019178,2]
[315339689,1708984239352,-500.0,0.00019178,2]
[315339691,1708984239361,-500.0,0.00019178,2]
[315339693,1708984239370,-500.0,0.00019178,2]
[315339695,1708984239379,-500.0,0.00019178,2]
[315339696,1708984239388,-500.0,0.00019178,2]
[315339698,1708984239398,-500.0,0.00019178,2]
[315339700,1708984239407,-2642.06,0.00019178,2]
[315339702,1708984239417,-500.0,0.00019178,2]
[315339705,1708984239427,-500.0,0.00019178,2]
[315339707,1708984239437,-500.65752268,0.00019178,2]
[315339708,1708984239449,-500.0,0.00019178,2]
[315339711,1708984239461,-500.0,0.00019178,2]
[315339713,1708984239471,-1172.22,0.00019178,2]
[315339715,1708984239481,-626.77094743,0.00019178,2]
[315339717,1708984239492,-500.0,0.00019178,2]
[315339718,1708984239501,-332.25830118,0.00019178,2]
[315339720,1708984239510,-1590.17,0.00019178,2]
[315339722,1708984239519,-500.0,0.00019178,2]
[315339723,1708984239529,-500.0,0.00019178,2]
[315339724,1708984239539,-479.17651164,0.00019178,2]
[315339725,1708984239547,-500.0,0.00019178,2]
[315339726,1708984239556,-500.0,0.00019178,2]
[315339727,1708984239565,-500.0,0.00019178,2]
[315339728,1708984239574,-156.1005894,0.00019178,2]
[315339729,1708984239583,-500.0,0.00019178,2]
[315339730,1708984239592,-610.36,0.00019178,2]
[315339731,1708984239601,-500.0,0.00019178,2]
[315339732,1708984239609,-500.0,0.00019178,2]
[315339733,1708984239619,-500.0,0.00019178,2]
[315339735,1708984239628,-501.8316353,0.00019178,2]
[315339737,1708984239637,-629.55043623,0.00019178,2]
[315339738,1708984239646,-510.83557812,0.00019178,2]
[315339740,1708984239656,-579.41,0.00019178,2]
[315339742,1708984239666,-500.0,0.00019178,2]
[315339744,1708984239676,-500.0,0.00019178,2]
[315339746,1708984239686,-501.11769825,0.00019178,2]
[315339748,1708984239694,-500.0,0.00019178,2]
[315339750,1708984239704,-500.0,0.00019178,2]
[315339752,1708984239714,-500.0,0.00019178,2]
[315339754,1708984239723,-601.83460681,0.00019178,2]
[315339756,1708984239732,-500.0,0.00019178,2]
[315339758,1708984239741,-500.0,0.00019178,2]
[315339760,1708984239751,-500.0,0.00019178,2]
[315339762,1708984239760,-500.0,0.00019178,2]
[315339764,1708984239769,-500.0,0.00019178,2]
[315339766,1708984239778,-500.0,0.00019178,2]
[315339768,1708984239787,-500.0,0.00019178,2]
[315339770,1708984239796,-500.0,0.00019178,2]
[315339772,1708984239805,-503.59057309,0.00019178,2]
[315339774,1708984239815,-500.0,0.00019178,2]
[315339776,1708984239824,-500.0,0.00019178,2]
[315339778,1708984239834,-502.47764759,0.00019178,2]
[315339780,1708984239843,-500.0,0.00019178,2]
[315339782,1708984239852,-500.0,0.00019178,2]
[315339784,1708984239861,-527.74951966,0.00019178,2]
[315339786,1708984239870,-500.0,0.00019178,2]
[315339788,1708984239879,-500.0,0.00019178,2]
[315339790,1708984239889,-503.11301008,0.00019178,2]
[315339792,1708984239898,-500.0,0.00019178,2]
[315339794,1708984239907,-500.0,0.00019178,2]
[315339796,1708984239916,-481.7489262,0.00019178,2]
[315339798,1708984239926,-500.0,0.00019178,2]
[315339800,1708984239934,-500.0,0.00019178,2]
[315339802,1708984239943,-266.78686082,0.00019178,2]
[315339804,1708984239952,-569.23170504,0.00019178,2]
[315339806,1708984239963,-500.0,0.00019178,2]
[315339808,1708984239972,-500.0,0.00019178,2]
[315339810,1708984239981,-500.0,0.00019178,2]
[315339812,1708984239990,-500.0,0.00019178,2]
[315339814,1708984239999,-500.91762408,0.00019178,2]
[315339816,1708984240008,-500.0,0.00019178,2]
[315339818,1708984240017,-500.0,0.00019178,2]
[315339819,1708984240026,-501.78484159,0.00019178,2]
[315339821,1708984240035,-501.85263397,0.00019178,2]
[315339823,1708984240044,-8817.79,0.00019178,2]
[315339825,1708984240054,-500.0,0.00019178,2]
[315339827,1708984240063,-502.47770452,0.00019178,2]
[315339829,1708984240072,-500.0,0.00019178,2]
[315339831,1708984240081,-500.0,0.00019178,2]
[315339833,1708984240090,-500.0,0.00019178,2]
[315339835,1708984240100,-500.0,0.00019178,2]
[315339838,1708984240110,-500.0,0.00019178,2]
[315339839,1708984240119,-500.0,0.00019178,2]
[315339842,1708984240130,-1418.97,0.00019178,2]
[315339843,1708984240139,-500.0,0.00019178,2]
[315339845,1708984240148,-3308.92,0.00019178,2]
[315339847,1708984240157,-500.0,0.00019178,2]
[315339849,1708984240166,-500.0,0.00019178,2]
[315339851,1708984240176,-500.0,0.00019178,2]
[315339853,1708984240186,-500.0,0.00019178,2]
[315339855,1708984240195,-500.0,0.00019178,2]
[315339858,1708984240206,-500.0,0.00019178,2]
[315339860,1708984240215,-501.41045826,0.00019178,2]
[315339862,1708984240224,-500.0,0.00019178,2]
[315339864,1708984240233,-500.0,0.00019178,2]
[315339866,1708984240242,-500.0,0.00019178,2]
[315339868,1708984240253,-500.0,0.00019178,2]
[315339870,1708984240262,-500.0,0.00019178,2]
[315339872,1708984240271,-500.0,0.00019178,2]
[315339874,1708984240282,-1141.13,0.00019178,2]
[315339876,1708984240291,-451.30512983,0.00019178,2]
[315339878,1708984240301,-500.0,0.00019178,2]
[315339880,1708984240310,-500.0,0.00019178,2]
[315339882,1708984240319,-15743.28,0.00019178,2]
[315339884,1708984240328,-500.0,0.00019178,2]
[315339886,1708984240337,-500.0,0.00019178,2]
[315339888,1708984240346,-631.67993521,0.00019178,2]
[315339890,1708984240356,-500.0,0.00019178,2]
[315339892,1708984240365,-451.87442518,0.00019178,2]
[315339893,1708984240374,-500.0,0.00019178,2]
[315339895,1708984240384,-500.0,0.00019178,2]
[315339897,1708984240393,-1788.81,0.00019178,2]
[315339909,1708984240499,-591.94,0.00019178,2]
[315339911,1708984240511,-500.0,0.00019178,2]
[315339913,1708984240522,-500.0,0.00019178,2]
[315339915,1708984240532,-500.0,0.00019178,2]
[315339917,1708984240542,-501.16512852,0.00019178,2]
[315339919,1708984240552,-1086.94,0.00019178,2]
[315339921,1708984240562,-500.0,0.00019178,2]
[315339923,1708984240571,-1619.5,0.00019178,2]
[315339925,1708984240580,-500.0,0.00019178,2]
[315339927,1708984240589,-500.0,0.00019178,2]
[315339929,1708984240598,-500.0,0.00019178,2]
[315339931,1708984240608,-500.0,0.00019178,2]
[315339933,1708984240617,-521.26886401,0.00019178,2]
[315339935,1708984240626,-500.0,0.00019178,2]
[315339937,1708984240636,-500.0,0.00019178,2]
[315339939,1708984240645,-500.0,0.00019178,2]
[315339941,1708984240656,-500.0,0.00019178,2]
[315339943,1708984240665,-500.0,0.00019178,2]
[315339945,1708984240676,-501.00129828,0.00019178,2]
[315339947,1708984240685,-500.0,0.00019178,2]
[315339948,1708984240694,-500.0,0.00019178,2]
[315339950,1708984240704,-500.0,0.00019178,2]
[315339952,1708984240713,-1437.47,0.00019178,2]
[315339954,1708984240723,-500.0,0.00019178,2]
[315339956,1708984240732,-500.0,0.00019178,2]
[315339958,1708984240742,-500.0,0.00019178,2]
[315339960,1708984240751,-1038.09,0.00019178,2]
[315339962,1708984240761,-1291.05,0.00019178,2]
[315339964,1708984240770,-500.0,0.00019178,2]
[315339967,1708984240780,-501.82744386,0.00019178,2]
[315339968,1708984240789,-647.66354051,0.00019178,2]
[315339970,1708984240798,-500.0,0.00019178,2]
[315339972,1708984240808,-500.0,0.00019178,2]
[315339974,1708984240817,-500.0,0.00019178,2]
[315339976,1708984240826,-500.0,0.00019178,2]
[315339978,1708984240836,-871.6,0.00019178,2]
[315339980,1708984240845,-6340.62,0.00019178,2]
[315339982,1708984240854,-500.0,0.00019178,2]
[315339984,1708984240863,-604.51,0.00019178,2]
[315339986,1708984240872,-500.0,0.00019178,2]
[315339988,1708984240882,-2452.37,0.00019178,2]
[315339990,1708984240891,-500.0,0.00019178,2]
[315339992,1708984240899,-432.63229669,0.00019178,2]
[315339994,1708984240909,-500.0,0.00019178,2]
[315339996,1708984240917,-500.0,0.00019178,2]
[315339998,1708984240927,-500.0,0.00019178,2]
[315340000,1708984240935,-500.0,0.00019178,2]
[315340002,1708984240944,-500.0,0.00019178,2]
[315340004,1708984240954,-814.48,0.00019178,2]
[315340006,1708984240963,-511.74886625,0.00019178,2]
[315340008,1708984240972,-16225.29,0.00019178,2]
[315340010,1708984240981,-1568.18,0.00019178,2]
[315340012,1708984240990,-500.0,0.00019178,2]
[315340014,1708984241000,-500.0,0.00019178,2]
[315340016,1708984241009,-534.34,0.00019178,2]
[315340018,1708984241023,-500.0,0.00019178,2]
[315340020,1708984241032,-500.0,0.00019178,2]
[315340022,1708984241041,-500.0,0.00019178,2]
[315340024,1708984241050,-502.11470017,0.00019178,2]
[315340026,1708984241059,-3025.4,0.00019178,2]
[315340028,1708984241068,-500.0,0.00019178,2]
[315340030,1708984241077,-500.0,0.00019178,2]
[315340032,1708984241086,-500.0,0.00019178,2]
[315340034,1708984241094,-504.45809868,0.00019178,2]
[315340036,1708984241103,-500.0,0.00019178,2]
[315340038,1708984241112,-2134.19,0.00019178,2]
[315340040,1708984241121,-500.0,0.00019178,2]
[315340042,1708984241131,-500.0,0.00019178,2]
[315340044,1708984241140,-500.0,0.00019178,2]
[315340046,1708984241149,-500.0,0.00019178,2]
[315340048,1708984241158,-500.0,0.00019178,2]
[315340050,1708984241167,-500.0,0.00019178,2]
[315340052,1708984241176,-640.79,0.00019178,2]
[315340054,1708984241185,-268.97832651,0.00019178,2]
[315340056,1708984241194,-500.0,0.00019178,2]
[315340058,1708984241204,-500.0,0.00019178,2]
[315340060,1708984241216,-500.0,0.00019178,2]
[315340062,1708984241225,-1708.13,0.00019178,2]
[315340064,1708984241235,-500.0,0.00019178,2]
[315340066,1708984241244,-500.0,0.00019178,2]
[315340068,1708984241254,-500.0,0.00019178,2]
[315340070,1708984241263,-500.0,0.00019178,2]
[315340072,1708984241272,-500.0,0.00019178,2]
[315340074,1708984241282,-500.0,0.00019178,2]
[315340076,1708984241291,-1799.77,0.00019178,2]
[315340078,1708984241300,-500.0,0.00019178,2]
[315340080,1708984241309,-500.0,0.00019178,2]
[315340082,1708984241318,-500.0,0.00019178,2]
[315340084,1708984241327,-500.0,0.00019178,2]
[315340086,1708984241336,-500.0,0.00019178,2]
[315340088,1708984241346,-500.0,0.00019178,2]
[315340090,1708984241355,-500.0,0.00019178,2]
[315340092,1708984241364,-1906.84,0.00019178,2]
[315340094,1708984241373,-2603.45,0.00019178,2]
[315340096,1708984241383,-500.0,0.00019178,2]
[315340098,1708984241392,-2224.91,0.00019178,2]
[315340100,1708984241401,-500.0,0.00019178,2]
[315340102,1708984241410,-500.0,0.00019178,2]
[315340104,1708984241419,-500.0,0.00019178,2]
[315340106,1708984241428,-165.875704,0.00019178,2]
[315340108,1708984241439,-166.666666,0.00019178,2]
[315340109,1708984241450,-167.41212,0.00019178,2]
[315340111,1708984241459,-280.85132988,0.0001945,2]
[315340113,1708984241468,-666.66,0.00019451,2]
[315340115,1708984241478,-666.66,0.00019451,2]
[315340118,1708984241488,-666.66,0.00019451,2]
[315340119,1708984241499,-666.66,0.00019451,2]
[315340121,1708984241510,-1519.07055314,0.00019451,2]
[315340124,1708984241522,-501.97542393,0.00019452,2]
[315340126,1708984241531,-500.0,0.00019452,2]
[315340128,1708984241541,-500.0,0.00019452,2]
[315340130,1708984241550,-500.0,0.00019452,2]
[315340132,1708984241559,-500.0,0.00019452,2]
[315340134,1708984241568,-229.23019617,0.00019452,2]
[315340136,1708984241577,-500.0,0.00019452,2]
[315340138,1708984241589,-500.0,0.00019452,2]
[315340140,1708984241598,-329.06892386,0.00019452,2]
[315340142,1708984241607,-500.0,0.00019452,2]
[315340144,1708984241616,-500.0,0.00019452,2]
[315340146,1708984241625,-500.0,0.00019452,2]
[315340148,1708984241635,-500.0,0.00019452,2]
[315340149,1708984241644,-225.58320984,0.00019452,2]
[315340151,1708984241654,-709.78,0.00019452,2]
[315340153,1708984241663,-500.35866528,0.00019452,2]
[315340155,1708984241672,-1130.39,0.00019452,2]
[315340157,1708984241681,-509.02416271,0.00019452,2]
[315340159,1708984241690,-500.0,0.00019452,2]
[315340161,1708984241699,-500.0,0.00019452,2]
[315340163,1708984241709,-500.0,0.00019452,2]
[315340165,1708984241718,-500.0,0.00019452,2]
[315340168,1708984241727,-501.51957996,0.00019452,2]
[315340170,1708984241737,-500.0,0.00019452,2]
[315340172,1708984241747,-575.70592175,0.00019452,2]
[315340173,1708984241756,-1000.0,0.00019452,2]
[315340175,1708984241767,-500.0,0.00019452,2]
[315340176,1708984241776,-500.86543318,0.00019452,2]
[315340177,1708984241785,-500.0,0.00019452,2]
[315340178,1708984241794,-500.0,0.00019452,2]
[315340179,1708984241803,-500.0,0.00019452,2]
[315340180,1708984241812,-500.0,0.00019452,2]
[315340181,1708984241822,-500.0,0.00019452,2]
[315340182,1708984241831,-500.0,0.00019452,2]
[315340183,1708984241840,-500.0,0.00019452,2]
[315340184,1708984241849,-500.0,0.00019452,2]
[315340185,1708984241858,-500.0,0.00019452,2]
[315340186,1708984241867,-501.52534223,0.00019452,2]
[315340187,1708984241876,-500.0,0.00019452,2]
[315340188,1708984241884,-500.0,0.00019452,2]
[315340189,1708984241893,-500.0,0.00019452,2]
[315340190,1708984241902,-501.47582872,0.00019452,2]
[315340191,1708984241911,-528.2173094,0.00019452,2]
[315340192,1708984241919,-500.0,0.00019452,2]
[315340193,1708984241928,-500.0,0.00019452,2]
[315340194,1708984241937,-500.0,0.00019452,2]
[315340195,1708984241946,-500.0,0.00019452,2]
[315340196,1708984241955,-500.0,0.00019452,2]
[315340197,1708984241964,-500.0,0.00019452,2]
[315340198,1708984241973,-187.73483971,0.00019452,2]
[315340199,1708984241983,-500.0,0.00019452,2]
[315340200,1708984241992,-500.0,0.00019452,2]
[315340201,1708984242001,-503.93229998,0.00019452,2]
[315340202,1708984242010,-500.0,0.00019452,2]
[315340204,1708984242019,-2642.06,0.00019452,2]
[315340205,1708984242028,-500.0,0.00019452,2]
[315340207,1708984242037,-500.0,0.00019452,2]
[315340209,1708984242047,-500.0,0.00019452,2]
[315340211,1708984242056,-500.0,0.00019452,2]
[315340213,1708984242065,-1172.22,0.00019452,2]
[315340215,1708984242074,-1590.17,0.00019452,2]
[315340217,1708984242083,-500.0,0.00019452,2]
[315340219,1708984242093,-500.0,0.00019452,2]
[315340221,1708984242102,-436.38596595,0.00019452,2]
[315340223,1708984242111,-500.0,0.00019452,2]
[315340224,1708984242120,-500.0,0.00019452,2]
[315340226,1708984242129,-610.36,0.00019452,2]
[315340228,1708984242139,-500.829993,0.00019452,2]
[315340230,1708984242148,-579.41,0.00019452,2]
[315340232,1708984242158,-500.0,0.00019452,2]
[315340234,1708984242168,-500.0,0.00019452,2]
[315340236,1708984242177,-500.0,0.00019452,2]
[315340238,1708984242186,-500.0,0.00019452,2]
[315340240,1708984242196,-500.0,0.00019452,2]
[315340242,1708984242205,-417.97011128,0.00019452,2]
[315340244,1708984242216,-309.24117467,0.00019452,2]
[315340247,1708984242227,-418.52836242,0.00019452,2]
[315340249,1708984242236,-500.0,0.00019452,2]
[315340251,1708984242246,-501.20981282,0.00019452,2]
[315340252,1708984242255,-500.0,0.00019452,2]
[315340254,1708984242266,-500.0,0.00019452,2]
[315340256,1708984242276,-500.0,0.00019452,2]
[315340258,1708984242286,-500.0,0.00019452,2]
[315340260,1708984242295,-500.0,0.00019452,2]
[315340262,1708984242304,-500.0,0.00019452,2]
[315340264,1708984242313,-500.0,0.00019452,2]
[315340266,1708984242322,-500.0,0.00019452,2]
[315340268,1708984242331,-582.24951827,0.00019452,2]
[315340270,1708984242341,-500.0,0.00019452,2]
[315340272,1708984242350,-500.0,0.00019452,2]
[315340274,1708984242360,-500.0,0.00019452,2]
[315340276,1708984242369,-500.0,0.00019452,2]
[315340278,1708984242378,-443.78647685,0.00019452,2]
[315340280,1708984242388,-500.0,0.00019452,2]
[315340282,1708984242397,-500.0,0.00019452,2]
[315340284,1708984242407,-500.0,0.00019452,2]
[315340286,1708984242418,-500.0,0.00019452,2]
[315340288,1708984242427,-8817.79,0.00019452,2]
[315340290,1708984242437,-501.0634752,0.00019452,2]
[315340292,1708984242447,-399.4533262,0.00019452,2]
[315340294,1708984242459,-500.0,0.00019452,2]
[315340296,1708984242468,-500.0,0.00019452,2]
[315340298,1708984242477,-500.0,0.00019452,2]
[315340300,1708984242489,-500.0,0.00019452,2]
[315340302,1708984242497,-225.36072718,0.00019452,2]
[315340304,1708984242507,-1418.97,0.00019452,2]
[315340306,1708984242516,-500.0,0.00019452,2]
[315340308,1708984242525,-3308.92,0.00019452,2]
[315340310,1708984242534,-500.0,0.00019452,2]
[315340312,1708984242544,-500.0,0.00019452,2]
[315340314,1708984242553,-500.0,0.00019452,2]
[315340316,1708984242562,-500.0,0.00019452,2]
[315340318,1708984242571,-569.02009229,0.00019452,2]
[315340320,1708984242580,-1141.13,0.00019452,2]
[315340322,1708984242589,-376.53441205,0.00019452,2]
[315340324,1708984242598,-440.90678372,0.00019452,2]
[315340326,1708984242607,-15743.28,0.00019452,2]
[315340328,1708984242616,-500.0,0.00019452,2]
[315340330,1708984242625,-500.0,0.00019452,2]
[315340332,1708984242634,-500.0,0.00019452,2]
[315340333,1708984242642,-500.0,0.00019452,2]
[315340335,1708984242651,-1788.81,0.00019452,2]
[315340337,1708984242661,-591.94,0.00019452,2]
[315340339,1708984242670,-500.0,0.00019452,2]
[315340341,1708984242680,-532.69093167,0.00019452,2]
[315340343,1708984242688,-500.0,0.00019452,2]
[315340345,1708984242697,-1086.94,0.00019452,2]
[315340347,1708984242706,-500.0,0.00019452,2]
[315340349,1708984242716,-1619.5,0.00019452,2]
[315340351,1708984242725,-500.0,0.00019452,2]
[315340353,1708984242735,-500.0,0.00019452,2]
[315340355,1708984242744,-405.80118565,0.00019452,2]
[315340357,1708984242753,-500.0,0.00019452,2]
[315340359,1708984242763,-500.0,0.00019452,2]
[315340361,1708984242772,-500.0,0.00019452,2]
[315340363,1708984242781,-500.0,0.00019452,2]
[315340365,1708984242790,-557.07689794,0.00019452,2]
[315340367,1708984242799,-500.0,0.00019452,2]
[315340369,1708984242808,-501.11759681,0.00019452,2]
[315340371,1708984242818,-1437.47,0.00019452,2]
[315340373,1708984242827,-501.23926151,0.00019452,2]
[315340375,1708984242836,-500.0,0.00019452,2]
[315340377,1708984242845,-500.0,0.00019452,2]
[315340379,1708984242854,-1038.09,0.00019452,2]
[315340392,1708984242863,-1291.05,0.00019452,2]
[315340395,1708984242963,-500.0,0.00019452,2]
[315340397,1708984242973,-500.0,0.00019452,2]
[315340400,1708984242982,-500.0,0.00019452,2]
[315340402,1708984242991,-501.25122817,0.00019452,2]
[315340404,1708984243000,-871.6,0.00019452,2]
[315340406,1708984243009,-6340.62,0.00019452,2]
[315340408,1708984243018,-500.0,0.00019452,2]
[315340411,1708984243027,-604.51,0.00019452,2]